fUST/lending_fUST_20240823
["ID","MTS","AMOUNT","RATE_DAILY","PERIOD"]
[335639070,1724397051314,-500.0,0.00016712,2]
[335639071,1724397051324,-550.36,0.00016712,2]
[335639072,1724397051335,-500.0,0.00016712,2]
[335639073,1724397051347,-854.53,0.00016712,2]
[335639074,1724397051356,-500.0,0.00016712,2]
[335639075,1724397051368,-500.0,0.00016712,2]
[335639076,1724397051377,-500.0,0.00016712,2]
[335639077,1724397051389,-500.0,0.00016712,2]
[335639078,1724397051399,-500.0,0.00016712,2]
[335639079,1724397051411,-500.0,0.00016712,2]
[335639080,1724397051422,-500.0,0.00016712,2]
[335639081,1724397051433,-500.0,0.00016712,2]
[335639082,1724397051444,-500.0,0.00016712,2]
[335639083,1724397051454,-500.0,0.00016712,2]
[335639084,1724397051466,-500.0,0.00016712,2]
[335639085,1724397051475,-500.0,0.00016712,2]
[335639086,1724397051485,-500.0,0.00016712,2]
[335639087,1724397051495,-502.86591689,0.00016712,2]
[335639088,1724397051504,-500.0,0.00016712,2]
[335639089,1724397051513,-881.36,0.00016712,2]
[335639090,1724397051523,-500.0,0.00016712,2]
[335639091,1724397051534,-500.96689046,0.00016712,2]
[335639092,1724397051543,-500.0,0.00016712,2]
[335639093,1724397051553,-500.0,0.00016712,2]
[335639094,1724397051563,-500.0,0.00016712,2]
[335639095,1724397051572,-637.58,0.00016712,2]
[335639096,1724397051583,-1000.0,0.00016712,2]
[335639097,1724397051593,-500.0,0.00016712,2]
[335639098,1724397051603,-500.0,0.00016712,2]
[335639099,1724397051612,-500.59192203,0.00016712,2]
[335639100,1724397051621,-500.0,0.00016712,2]
[335639101,1724397051631,-500.0,0.00016712,2]
[335639102,1724397051641,-500.0,0.00016712,2]
[335639103,1724397051651,-500.0,0.00016712,2]
[335639104,1724397051661,-500.0,0.00016712,2]
[335639105,1724397051671,-500.0,0.00016712,2]
[335639106,1724397051680,-383.94919,0.00016712,2]
[335639107,1724397051690,-500.0,0.00016712,2]
[335639108,1724397051700,-726.18,0.00016712,2]
[335639109,1724397051709,-500.0,0.00016712,2]
[335639110,1724397051718,-3347.8,0.00016712,2]
[335639111,1724397051728,-500.0,0.00016712,2]
[335639112,1724397051738,-500.0,0.00016712,2]
[335639113,1724397051748,-500.0,0.00016712,2]
[335639114,1724397051759,-500.0,0.00016712,2]
[335639115,1724397051774,-500.0,0.00016712,2]
[335639116,1724397051783,-1532.44,0.00016712,2]
[335639117,1724397051793,-500.0,0.00016712,2]
[335639118,1724397051802,-500.0,0.00016712,2]
[335639119,1724397051811,-500.0,0.00016712,2]
[335639120,1724397051821,-598.70782263,0.00016712,2]
[335639121,1724397051832,-7710.47,0.00016712,2]
[335639122,1724397051841,-1347.75,0.00016712,2]
[335639123,1724397051852,-500.0,0.00016712,2]
[335639124,1724397051862,-500.0,0.00016712,2]
[335639125,1724397051872,-500.0,0.00016712,2]
[335639126,1724397051883,-500.0,0.00016712,2]
[335639127,1724397051894,-500.0,0.00016712,2]
[335639128,1724397051904,-500.0,0.00016712,2]
[335639129,1724397051916,-500.0,0.00016712,2]
[335639130,1724397051925,-500.0,0.00016712,2]
[335639131,1724397051935,-2755.88,0.00016712,2]
[335639132,1724397051946,-1013.99,0.00016712,2]
[335639133,1724397051955,-2563.44,0.00016712,2]
[335639134,1724397051965,-500.0,0.00016712,2]
[335639135,1724397051975,-500.0,0.00016712,2]
[335639136,1724397051984,-500.0,0.00016712,2]
[335639137,1724397051996,-500.0,0.00016712,2]
[335639138,1724397052007,-500.0,0.00016712,2]
[335639139,1724397052019,-500.0,0.00016712,2]
[335639140,1724397052028,-1398.25,0.00016712,2]
[335639141,1724397052040,-500.0,0.00016712,2]
[335639142,1724397052051,-1074.35,0.00016712,2]
[335639143,1724397052063,-500.0,0.00016712,2]
[335639144,1724397052072,-734.24,0.00016712,2]
[335639145,1724397052083,-500.0,0.00016712,2]
[335639146,1724397052093,-1539.99,0.00016712,2]
[335639147,1724397052104,-500.0,0.00016712,2]
[335639148,1724397052115,-500.0,0.00016712,2]
[335639149,1724397052126,-303.83652486,0.00016712,2]
[335639150,1724397052136,-540.66585688,0.00016712,2]
[335639151,1724397052150,-509.44,0.00016712,2]
[335639152,1724397052160,-500.0,0.00016712,2]
[335639153,1724397052169,-605.84,0.00016712,2]
[335639154,1724397052178,-814.9,0.00016712,2]
[335639155,1724397052187,-500.0,0.00016712,2]
[335639156,1724397052197,-500.0,0.00016712,2]
[335639157,1724397052206,-500.0,0.00016712,2]
[335639158,1724397052216,-940.53,0.00016712,2]
[335639159,1724397052226,-500.54070432,0.00016712,2]
[335639160,1724397052235,-500.0,0.00016712,2]
[335639161,1724397052245,-500.0,0.00016712,2]
[335639162,1724397052254,-914.52,0.00016712,2]
[335639163,1724397052264,-500.0,0.00016712,2]
[335639164,1724397052273,-500.0,0.00016712,2]
[335639165,1724397052283,-3178.23,0.00016712,2]
[335639166,1724397052293,-500.0,0.00016712,2]
[335639167,1724397052303,-3173.87,0.00016712,2]
[335639168,1724397052312,-4281.8,0.00016712,2]
[335639169,1724397052322,-740.65,0.00016712,2]
[335639170,1724397052337,-736.88,0.00016712,2]
[335639171,1724397052347,-500.0,0.00016712,2]
[335639172,1724397052356,-3060.88,0.00016712,2]
[335639173,1724397052366,-500.0,0.00016712,2]
[335639174,1724397052384,-500.0,0.00016712,2]
[335639175,1724397052394,-500.0,0.00016712,2]
[335639176,1724397052403,-762.21,0.00016712,2]
[335639177,1724397052413,-500.0,0.00016712,2]
[335639178,1724397052423,-500.0,0.00016712,2]
[335639179,1724397052433,-685.5,0.00016712,2]
[335639180,1724397052443,-3100.78,0.00016712,2]
[335639181,1724397052452,-795.47,0.00016712,2]
[335639182,1724397052462,-500.0,0.00016712,2]
[335639183,1724397052472,-500.0,0.00016712,2]
[335639184,1724397052481,-825.3,0.00016712,2]
[335639185,1724397052491,-500.0,0.00016712,2]
[335639186,1724397052500,-500.0,0.00016712,2]
[335639187,1724397052510,-500.0,0.00016712,2]
[335639188,1724397052519,-500.0,0.00016712,2]
[335639189,1724397052529,-2439.23678145,0.00016712,2]
[335639190,1724397053110,-31.81249674,0.00016438,2]
[335639191,1724397053142,-468.18750326,0.00016438,2]
[335639192,1724397053152,-510.17,0.00016438,2]
[335639193,1724397053162,-1789.18321855,0.00016712,2]
[335639194,1724397053173,-500.0,0.00016712,2]
[335639195,1724397053183,-500.0,0.00016712,2]
[335639196,1724397053193,-500.0,0.00016712,2]
[335639197,1724397053202,-736.79,0.00016712,2]
[335639198,1724397053213,-279.88683784,0.00016712,2]
[335639199,1724397053224,-500.0,0.00016712,2]
[335639200,1724397053234,-500.0,0.00016712,2]
[335639201,1724397053244,-500.0,0.00016712,2]
[335639202,1724397053254,-500.0,0.00016712,2]
[335639203,1724397053266,-541.48619213,0.00016712,2]
[335639204,1724397053276,-500.0,0.00016712,2]
[335639205,1724397053286,-502.96555615,0.00016712,2]
[335639206,1724397053296,-503.10671007,0.00016712,2]
[335639207,1724397053305,-2489.04,0.00016712,2]
[335639208,1724397053315,-500.0,0.00016712,2]
[335639209,1724397053324,-500.0,0.00016712,2]
[335639210,1724397053334,-500.0,0.00016712,2]
[335639211,1724397053344,-500.0,0.00016712,2]
[335639212,1724397053353,-850.14,0.00016712,2]
[335639213,1724397053363,-500.0,0.00016712,2]
[335639214,1724397053372,-500.0,0.00016712,2]
[335639215,1724397053382,-500.0,0.00016712,2]
[335639216,1724397053391,-500.0,0.00016712,2]
[335639217,1724397053401,-934.17,0.00016712,2]
[335639218,1724397053411,-500.0,0.00016712,2]
[335639219,1724397053422,-755.47,0.00016712,2]
[335639220,1724397053432,-596.06,0.00016712,2]
[335639221,1724397053443,-500.0,0.00016712,2]
[335639222,1724397053454,-549.87,0.00016712,2]
[335639223,1724397053465,-500.0,0.00016712,2]
[335639224,1724397053475,-500.0,0.00016712,2]
[335639225,1724397053485,-716.91,0.00016712,2]
[335639226,1724397053495,-500.0,0.00016712,2]
[335639227,1724397053504,-500.0,0.00016712,2]
[335639228,1724397053514,-563.5930556,0.00016712,2]
[335639229,1724397053523,-500.0,0.00016712,2]
[335639230,1724397053533,-500.0,0.00016712,2]
[335639231,1724397053543,-593.93,0.00016712,2]
[335639232,1724397053552,-589.95,0.00016712,2]
[335639233,1724397053562,-1886.64,0.00016712,2]
[335639234,1724397053572,-500.0,0.00016712,2]
[335639235,1724397053583,-500.0,0.00016712,2]
[335639236,1724397053596,-500.0,0.00016712,2]
[335639237,1724397053606,-578.5,0.00016712,2]
[335639238,1724397053617,-1907.49007202,0.00016712,2]
[335639239,1724397053632,-907.90995004,0.00016712,2]
[335639240,1724397053698,980.0,0.00016337,2]
[335639241,1724397053724,941.39081732,0.00016337,2]
[335639242,1724397054755,-732.33001803,0.00016337,2]
[335639243,1724397054767,-500.0,0.00016438,2]
[335639244,1724397054787,-500.0,0.00016438,2]
[335639245,1724397054799,-1080.71997794,0.00016712,2]
[335639246,1724397054810,-500.0,0.00016712,2]
[335639247,1724397054832,-500.0,0.00016712,2]
[335639248,1724397054844,-546.9,0.00016712,2]
[335639249,1724397054857,-592.62,0.00016712,2]
[335639250,1724397054870,-808.47,0.00016712,2]
[335639251,1724397054885,-500.0,0.00016712,2]
[335639252,1724397054898,-500.0,0.00016712,2]
[335639253,1724397054909,-500.0,0.00016712,2]
[335639254,1724397054922,-899.28,0.00016712,2]
[335639255,1724397054933,-500.0,0.00016712,2]
[335639256,1724397054945,-500.0,0.00016712,2]
[335639257,1724397054955,-655.79,0.00016712,2]
[335639258,1724397054967,-500.0,0.00016712,2]
[335639259,1724397054977,-500.0,0.00016712,2]
[335639260,1724397054987,-500.0,0.00016712,2]
[335639261,1724397054998,-1029.03,0.00016712,2]
[335639262,1724397055008,-1388.04,0.00016712,2]
[335639263,1724397055020,-1728.39,0.00016712,2]
[335639264,1724397055031,-500.0,0.00016712,2]
[335639265,1724397055043,-585.4,0.00016712,2]
[335639266,1724397055053,-500.0,0.00016712,2]
[335639267,1724397055064,-500.0,0.00016712,2]
[335639268,1724397055074,-521.61,0.00016712,2]
[335639269,1724397055087,-5104.88,0.00016712,2]
[335639270,1724397055097,-500.0,0.00016712,2]
[335639271,1724397055108,-500.0,0.00016712,2]
[335639272,1724397055118,-500.0,0.00016712,2]
[335639273,1724397055129,-500.0,0.00016712,2]
[335639274,1724397055140,-500.0,0.00016712,2]
[335639275,1724397055151,-500.0,0.00016712,2]
[335639276,1724397055161,-1805.62,0.00016712,2]
[335639277,1724397055172,-500.0,0.00016712,2]
[335639278,1724397055182,-500.0,0.00016712,2]
[335639279,1724397055193,-4110.03,0.00016712,2]
[335639280,1724397055203,-500.0,0.00016712,2]
[335639281,1724397055214,-500.0,0.00016712,2]
[335639282,1724397055224,-500.0,0.00016712,2]
[335639283,1724397055235,-1613.71,0.00016712,2]
[335639284,1724397055245,-500.0,0.00016712,2]
[335639285,1724397055255,-500.0,0.00016712,2]
[335639286,1724397055265,-672.6,0.00016712,2]
[335639287,1724397055276,-500.0,0.00016712,2]
[335639288,1724397055287,-500.0,0.00016712,2]
[335639289,1724397055297,-720.61,0.00016712,2]
[335639290,1724397055308,-722.13,0.00016712,2]
[335639291,1724397055319,-500.0,0.00016712,2]
[335639292,1724397055332,-500.0,0.00016712,2]
[335639293,1724397055343,-615.61381898,0.00016712,2]
[335639294,1724397055354,-500.0,0.00016712,2]
[335639295,1724397055364,-527.5506171,0.00016712,2]
[335639296,1724397055375,-500.0,0.00016712,2]
[335639297,1724397055385,-1324.96,0.00016712,2]
[335639298,1724397055395,-500.0,0.00016712,2]
[335639299,1724397055406,-500.0,0.00016712,2]
[335639300,1724397055417,-6435.33,0.00016712,2]
[335639301,1724397055434,-500.0,0.00016712,2]
[335639302,1724397055447,-500.0,0.00016712,2]
[335639303,1724397055724,-710.03,0.00016712,2]
[335639304,1724397055733,-500.0,0.00016712,2]
[335639305,1724397055744,-500.0,0.00016712,2]
[335639306,1724397055753,-2833.05,0.00016712,2]
[335639307,1724397055764,-1269.45,0.00016712,2]
[335639308,1724397055776,-500.0,0.00016712,2]
[335639309,1724397055786,-1138.49,0.00016712,2]
[335639310,1724397055795,-1350.84,0.00016712,2]
[335639311,1724397055805,-710.92,0.00016712,2]
[335639312,1724397055815,-500.0,0.00016712,2]
[335639313,1724397055825,-500.0,0.00016712,2]
[335639314,1724397055834,-710.39,0.00016712,2]
[335639315,1724397055844,-1545.66,0.00016712,2]
[335639316,1724397055855,-500.0,0.00016712,2]
[335639317,1724397055865,-697.4,0.00016712,2]
[335639318,1724397055875,-502.40384647,0.00016712,2]
[335639319,1724397055886,-500.0,0.00016712,2]
[335639320,1724397055896,-1018.35,0.00016712,2]
[335639321,1724397055906,-500.0,0.00016712,2]
[335639322,1724397055916,-500.0,0.00016712,2]
[335639323,1724397055925,-500.0,0.00016712,2]
[335639324,1724397055935,-500.0,0.00016712,2]
[335639325,1724397055945,-942.7,0.00016712,2]
[335639326,1724397055954,-500.0,0.00016712,2]
[335639327,1724397055964,-500.0,0.00016712,2]
[335639328,1724397055979,-500.0,0.00016712,2]
[335639329,1724397055989,-500.0,0.00016712,2]
[335639330,1724397056000,-500.0,0.00016712,2]
[335639331,1724397056012,-500.0,0.00016712,2]
[335639332,1724397056025,-505.32442441,0.00016712,2]
[335639333,1724397056035,-500.0,0.00016712,2]
[335639334,1724397056046,-976.64,0.00016712,2]
[335639335,1724397056058,-500.0,0.00016712,2]
[335639336,1724397056069,-500.0,0.00016712,2]
[335639337,1724397056085,-1722.07,0.00016712,2]
[335639338,1724397056095,-510.17,0.00016712,2]
[335639339,1724397056105,-500.0,0.00016712,2]
[335639340,1724397056115,-277.78018588,0.00016773,2]
[335639341,1724397056125,-500.0,0.00016773,2]
[335639342,1724397056135,-183.42196264,0.00016773,2]
[335639343,1724397056144,-150.112233,0.000168,2]
[335639344,1724397056154,-150.112233,0.000168,2]
[335639345,1724397056164,-150.112233,0.000169,2]
[335639346,1724397056176,-150.112233,0.000169,2]
[335639347,1724397056188,-150.112233,0.000169,2]
[335639348,1724397056200,-522.45,0.00016957,2]
[335639349,1724397056211,-979.78,0.00016957,2]
[335639350,1724397056222,-1496.65,0.00016957,2]
[335639351,1724397056233,-1191.28,0.00016957,2]
[335639352,1724397056243,-500.0,0.00016958,2]
[335639353,1724397056254,-862.3,0.00016958,2]
[335639354,1724397056265,-1957.26,0.00016958,2]
[335639355,1724397056277,-1957.26,0.00016958,2]
[335639356,1724397056287,-500.0,0.00016958,2]
[335639357,1724397056297,-500.0,0.00016958,2]
[335639358,1724397056307,-500.0,0.00016958,2]
[335639359,1724397056319,-2553.08,0.00016958,2]
[335639360,1724397056329,-966.17,0.00016958,2]
[335639361,1724397056338,-500.0,0.00016958,2]
[335639362,1724397056348,-1218.93,0.00016958,2]
[335639363,1724397056358,-731.67,0.00016958,2]
[335639364,1724397056367,-2241.7,0.00016958,2]
[335639365,1724397056378,-500.0,0.00016958,2]
[335639366,1724397056387,-500.0,0.00016958,2]
[335639367,1724397056397,-885.07,0.00016958,2]
[335639368,1724397056407,-942.5,0.00016958,2]
[335639369,1724397056417,-500.0,0.00016958,2]
[335639370,1724397056427,-500.0,0.00016958,2]
[335639371,1724397056437,-500.0,0.00016958,2]
[335639372,1724397056449,-500.0,0.00016958,2]
[335639373,1724397056459,-500.0,0.00016958,2]
[335639374,1724397056471,-500.0,0.00016958,2]
[335639375,1724397056482,-517.94904243,0.00016958,2]
[335639376,1724397056492,-500.0,0.00016958,2]
[335639377,1724397056502,-500.0,0.00016958,2]
[335639378,1724397056511,-500.0,0.00016958,2]
[335639379,1724397056521,-500.0,0.00016958,2]
[335639380,1724397056530,-501.19470652,0.00016958,2]
[335639381,1724397056541,-500.0,0.00016958,2]
[335639382,1724397056552,-500.0,0.00016958,2]
[335639383,1724397056564,-500.0,0.00016958,2]
[335639384,1724397056575,-500.0,0.00016958,2]
[335639385,1724397056589,-626.43,0.00016958,2]
[335639386,1724397056598,-547.62,0.00016958,2]
[335639387,1724397056608,-542.75,0.00016958,2]
[335639388,1724397056618,-500.0,0.00016958,2]
[335639389,1724397056628,-504.87519166,0.00016958,2]
[335639390,1724397056637,-1055.23,0.00016958,2]
[335639391,1724397056647,-629.98,0.00016958,2]
[335639392,1724397056656,-574.35,0.00016958,2]
[335639393,1724397056666,-500.0,0.00016958,2]
[335639394,1724397056676,-500.0,0.00016958,2]
[335639395,1724397056687,-500.0,0.00016958,2]
[335639396,1724397056697,-500.0,0.00016958,2]
[335639397,1724397056706,-500.0,0.00016958,2]
[335639398,1724397056716,-1103.83,0.00016958,2]
[335639399,1724397056726,-524.57413378,0.00016958,2]
[335639400,1724397056735,-500.0,0.00016958,2]
[335639401,1724397056745,-1786.6,0.00016958,2]
[335639402,1724397056754,-1210.72,0.00016958,2]
[335639403,1724397056764,-500.0,0.00016958,2]
[335639404,1724397056777,-500.0,0.00016958,2]
[335639405,1724397056787,-500.0,0.00016958,2]
[335639406,1724397056797,-500.0,0.00016958,2]
[335639407,1724397056807,-598.09,0.00016958,2]
[335639408,1724397056817,-500.0,0.00016958,2]
[335639409,1724397056828,-500.0,0.00016958,2]
[335639410,1724397056837,-500.0,0.00016958,2]
[335639411,1724397056848,-500.0,0.00016958,2]
[335639412,1724397056861,-514.45,0.00016958,2]
[335639413,1724397056872,-1365.52,0.00016958,2]
[335639414,1724397056885,-500.0,0.00016958,2]
[335639415,1724397056895,-500.0,0.00016958,2]
[335639416,1724397056905,-600.43,0.00016958,2]
[335639417,1724397056914,-543.23,0.00016958,2]
[335639418,1724397056926,-500.0,0.00016958,2]
[335639419,1724397056936,-500.0,0.00016958,2]
[335639420,1724397056947,-500.0,0.00016958,2]
[335639421,1724397056957,-500.0,0.00016958,2]
[335639422,1724397056968,-500.0,0.00016958,2]
[335639423,1724397056979,-500.0,0.00016958,2]
[335639424,1724397056991,-500.0,0.00016958,2]
[335639425,1724397057002,-621.27,0.00016958,2]
[335639426,1724397057013,-500.0,0.00016958,2]
[335639427,1724397057024,-707.77,0.00016958,2]
[335639428,1724397057035,-500.0,0.00016958,2]
[335639429,1724397057045,-813.92,0.00016958,2]
[335639430,1724397057055,-500.0,0.00016958,2]
[335639431,1724397057067,-500.0,0.00016958,2]
[335639432,1724397057077,-742.69,0.00016958,2]
[335639433,1724397057088,-931.63,0.00016958,2]
[335639434,1724397057099,-500.0,0.00016958,2]
[335639435,1724397057111,-500.0,0.00016958,2]
[335639436,1724397057122,-500.0,0.00016958,2]
[335639437,1724397057134,-500.0,0.00016958,2]
[335639438,1724397057145,-500.0,0.00016958,2]
[335639439,1724397057156,-500.0,0.00016958,2]
[335639440,1724397057166,-500.0,0.00016958,2]
[335639441,1724397057177,-500.0,0.00016958,2]
[335639442,1724397057186,-500.0,0.00016958,2]
[335639443,1724397057196,-500.0,0.00016958,2]
[335639444,1724397057207,-500.0,0.00016958,2]
[335639445,1724397057218,-500.0,0.00016958,2]
[335639446,1724397057235,-559.62,0.00016958,2]
[335639447,1724397057246,-851.11,0.00016958,2]
[335639448,1724397057256,-626.73,0.00016958,2]
[335639449,1724397057266,-500.0,0.00016958,2]
[335639450,1724397057276,-580.01,0.00016958,2]
[335639451,1724397057287,-500.0,0.00016958,2]
[335639452,1724397057297,-500.0,0.00016958,2]
[335639453,1724397057308,-1648.93,0.00016958,2]
[335639454,1724397057318,-911.62,0.00016958,2]
[335639455,1724397057329,-500.0,0.00016958,2]
[335639456,1724397057337,-500.0,0.00016958,2]
[335639457,1724397057347,-500.0,0.00016958,2]
[335639458,1724397057357,-500.0,0.00016958,2]
[335639459,1724397057367,-500.0,0.00016958,2]
[335639460,1724397057377,-916.87,0.00016958,2]
[335639461,1724397057388,-2597.14,0.00016958,2]
[335639462,1724397057401,-975.36,0.00016958,2]
[335639463,1724397057412,-2514.48,0.00016958,2]
[335639464,1724397057422,-522.45,0.00016965,2]
[335639465,1724397057432,-979.78,0.00016965,2]
[335639466,1724397057443,-1496.65,0.00016965,2]
[335639467,1724397057453,-1191.28,0.00016965,2]
[335639468,1724397057463,-1957.26,0.00016966,2]
[335639469,1724397057473,-522.45,0.00016966,2]
[335639470,1724397057484,-522.45,0.00016966,2]
[335639471,1724397057495,-522.45,0.00016966,2]
[335639472,1724397057506,-522.45,0.00016966,2]
[335639473,1724397057516,-522.62591194,0.00016966,2]
[335639474,1724397057527,-500.0,0.00016966,2]
[335639475,1724397057537,-979.78,0.00016966,2]
[335639476,1724397057549,-979.78,0.00016966,2]
[335639477,1724397057560,-979.78,0.00016966,2]
[335639478,1724397057570,-979.78,0.00016966,2]
[335639479,1724397057582,-979.90372772,0.00016966,2]
[335639480,1724397057593,-1496.65,0.00016966,2]
[335639481,1724397057604,-1496.65,0.00016966,2]
[335639482,1724397057615,-1496.65,0.00016966,2]
[335639483,1724397057625,-1496.65,0.00016966,2]
[335639484,1724397057637,-1496.7903179,0.00016966,2]
[335639485,1724397057647,-1191.28,0.00016966,2]
[335639486,1724397057658,-1191.28,0.00016966,2]
[335639487,1724397057668,-1191.28,0.00016966,2]
[335639488,1724397057680,-1191.28,0.00016966,2]
[335639489,1724397057691,-1191.45339805,0.00016966,2]
[335639490,1724397057701,-501.0546456,0.00016967,2]
[335639491,1724397057713,-500.0,0.00016967,2]
[335639492,1724397057724,-500.0,0.00016967,2]
[335639493,1724397057735,-160.88080564,0.00016967,2]
[335639494,1724397057745,-500.0,0.00016967,2]
[335639495,1724397057756,-500.0,0.00016967,2]
[335639496,1724397057767,-500.0,0.00016967,2]
[335639497,1724397057780,-500.0,0.00016967,2]
[335639498,1724397057790,-500.0,0.00016967,2]
[335639499,1724397057802,-500.0,0.00016967,2]
[335639500,1724397057811,-502.45284766,0.00016967,2]
[335639501,1724397057822,-500.0,0.00016967,2]
[335639502,1724397057834,-500.0,0.00016967,2]
[335639503,1724397057844,-500.0,0.00016967,2]
[335639504,1724397057855,-500.0,0.00016967,2]
[335639505,1724397057866,-500.0,0.00016967,2]
[335639506,1724397057876,-500.571174,0.00016967,2]
[335639507,1724397057887,-500.0,0.00016967,2]
[335639508,1724397057898,-207.68521637,0.00016967,2]
[335639509,1724397057907,-500.0,0.00016967,2]
[335639510,1724397057916,-500.0,0.00016967,2]
[335639511,1724397057926,-500.0,0.00016967,2]
[335639512,1724397057936,-500.0,0.00016967,2]
[335639513,1724397057946,-1957.26,0.00016967,2]
[335639514,1724397057956,-500.0,0.00016967,2]
[335639515,1724397057966,-500.0,0.00016967,2]
[335639516,1724397057977,-500.0,0.00016967,2]
[335639517,1724397057988,-1957.26,0.00016968,2]
[335639518,1724397057999,-1957.26,0.00016968,2]
[335639519,1724397058009,-1957.26,0.00016968,2]
[335639520,1724397058021,-1957.26,0.00016968,2]
[335639521,1724397058034,-1957.26,0.00016968,2]
[335639522,1724397058044,-504.28632907,0.00016968,2]
[335639523,1724397058053,-500.0,0.00016968,2]
[335639524,1724397058065,-500.0,0.00016968,2]
[335639525,1724397058075,-500.0,0.00016968,2]
[335639526,1724397058087,-500.0,0.00016968,2]
[335639527,1724397058098,-500.0,0.00016968,2]
[335639528,1724397058108,-500.0,0.00016968,2]
[335639529,1724397058118,-500.0,0.00016968,2]
[335639530,1724397058128,-500.0,0.00016968,2]
[335639531,1724397058138,-1111.52616931,0.00016977,2]
[335639532,1724397058148,-1633.31389497,0.00016986,9]
[335639533,1724397058160,-500.0,0.00016986,2]
[335639534,1724397058171,-893.07,0.00016986,2]
[335639535,1724397058183,-500.0,0.00016986,2]
[335639536,1724397058195,-500.0,0.00016986,2]
[335639537,1724397058205,-515.35,0.00016986,2]
[335639538,1724397058275,-500.0,0.00016986,2]
[335639539,1724397058285,-518.97,0.00016986,2]
[335639540,1724397058295,-364.82098739,0.00016986,2]
[335639541,1724397058305,-500.0,0.00016986,2]
[335639542,1724397058316,-500.0,0.00016986,2]
[335639543,1724397058326,-633.93,0.00016986,2]
[335639544,1724397058337,-500.0,0.00016986,2]
[335639545,1724397058348,-500.0,0.00016986,2]
[335639546,1724397058359,-500.0,0.00016986,2]
[335639547,1724397058369,-500.0,0.00016986,2]
[335639548,1724397058379,-500.0,0.00016986,2]
[335639549,1724397058389,-500.0,0.00016986,2]
[335639550,1724397058398,-500.0,0.00016986,2]
[335639551,1724397058409,-500.0,0.00016986,2]
[335639552,1724397058421,-500.0,0.00016986,2]
[335639553,1724397058430,-522.99,0.00016986,2]
[335639554,1724397058440,-500.0,0.00016986,2]
[335639555,1724397058451,-592.9,0.00016986,2]
[335639556,1724397058462,-500.0,0.00016986,2]
[335639557,1724397058473,-500.0,0.00016986,2]
[335639558,1724397058484,-500.0,0.00016986,2]
[335639559,1724397058494,-500.0,0.00016986,2]
[335639560,1724397058505,-500.0,0.00016986,2]
[335639561,1724397058518,-500.0,0.00016986,2]
[335639562,1724397058529,-500.0,0.00016986,2]
[335639563,1724397058540,-500.0,0.00016986,2]
[335639564,1724397058550,-500.0,0.00016986,2]
[335639565,1724397058561,-500.0,0.00016986,2]
[335639566,1724397058573,-598.35837411,0.00016986,2]
[335639567,1724397058584,-514.93423816,0.00016986,2]
[335639568,1724397058594,-500.0,0.00016986,2]
[335639569,1724397058605,-500.0,0.00016986,2]